bitfinex/quotes_SOLUSD_20260114
["timestamp","ask_amount","ask_price","bid_price","bid_amount"]
[1768429311964,0.65613969,146.6,146.55,14.93873195]
[1768429312777,7.47761357,146.6,146.55,14.93873195]
[1768429315488,6.82096198,146.61,146.57,2.49873195]
[1768429315779,0.65613969,146.6,146.56,2.49873195]
[1768429316659,7.47710167,146.61,146.58,2.49873195]
[1768429316859,7.47710167,146.61,146.57,2.49873195]
[1768429318578,0.65613969,146.6,146.57,2.49873195]
[1768429320559,0.65613969,146.6,146.56,2.49873195]
[1768429321096,7.47633566,146.63,146.59,2.49873195]
[1768429321390,7.47633566,146.63,146.58,14.93873195]
[1768429321559,0.65613969,146.62,146.58,14.93873195]
[1768429322465,0.65613969,146.62,146.58,12.44]
[1768429326174,2.49873195,146.69,146.61,0.65613969]
[1768429326374,2.49873195,146.69,146.62,0.65613969]
[1768429326375,2.49873195,146.68,146.62,0.65613969]
[1768429326575,23.86039549,146.69,146.63,0.65613969]
[1768429326779,26.35912744,146.69,146.63,0.65613969]
[1768429326990,23.86039549,146.69,146.63,0.65613969]
[1768429327182,26.35912744,146.69,146.63,0.65613969]
[1768429327564,2.49873195,146.68,146.62,3.15487164]
[1768429327765,2.49873195,146.67,146.61,12.44]
[1768429327970,2.49873195,146.67,146.61,13.09613969]
[1768429328183,0.65613969,146.66,146.61,13.09613969]
[1768429328362,0.65613969,146.65,146.61,13.09613969]
[1768429328978,0.65613969,146.63,146.58,0.65613969]
[1768429329181,0.65613969,146.63,146.59,12.44]
[1768429329692,3.15487164,146.63,146.59,12.44]
[1768429330484,9.97506334,146.63,146.59,12.44]
[1768429330798,3.15487164,146.62,146.59,12.44]
[1768429332671,0.65613969,146.62,146.59,12.44]
[1768429332875,2.49873195,146.61,146.59,12.44]
[1768429334193,3.15487164,146.62,146.59,12.44]
[1768429334496,9.97506334,146.63,146.59,13.09613969]
[1768429335694,7.47633139,146.63,146.59,13.09613969]
[1768429342210,0.69720515,146.62,146.59,13.09613969]
[1768429348909,7.51772618,146.62,146.59,13.09613969]
[1768429349298,11.42119772,146.62,146.59,13.09613969]
[1768429349503,11.42119772,146.62,146.55,0.65613969]
[1768429349504,0.69720515,146.59,146.55,0.65613969]
[1768429349701,3.90347154,146.6,146.56,13.09613969]
[1768429350004,3.90347154,146.59,146.56,13.09613969]
[1768429350500,3.90347154,146.6,146.56,13.09613969]
[1768429351689,4.60067669,146.6,146.56,13.09613969]
[1768429352297,4.60067669,146.59,146.55,0.66902069]
[1768429352498,0.69720515,146.58,146.55,0.66902069]
[1768429355932,0.66720516,146.58,146.55,0.66902069]
[1768429370749,0.66720516,146.58,146.55,7.49252072]
[1768429371039,0.65519544,146.6,146.56,0.66863293]
[1768429371737,0.65519544,146.62,146.59,0.66863293]
[1768429375055,0.65519544,146.62,146.58,11.39415232]
[1768429375640,0.65519544,146.62,146.58,7.49068078]
[1768429376648,0.65519544,146.6,146.56,13.10863293]
[1768429377352,0.65519544,146.6,146.57,0.66863293]
[1768429382547,0.65519544,146.6,146.57,7.4911346]
[1768429383664,0.65519544,146.61,146.58,0.66863293]
[1768429385362,0.65519544,146.61,146.58,7.49072009]
[1768429395192,0.65519544,146.61,146.58,0.66863293]
[1768429396896,0.65519544,146.6,146.56,0.66863293]
[1768429405902,0.66307336,146.59,146.55,12.44]
[1768429406080,0.66307336,146.58,146.54,7.48561571]
[1768429407002,0.66307336,146.58,146.55,0.66165129]
[1768429421314,0.66307336,146.57,146.53,12.44]
[1768429421511,0.66307336,146.57,146.53,13.10165129]
[1768429424024,0.66307336,146.57,146.53,19.92608173]
[1768429425304,0.66307336,146.57,146.54,0.66165129]
[1768429433120,0.68771696,146.6,146.57,0.6699436]
[1768429434321,6.82035193,146.62,146.59,0.6699436]
[1768429434322,0.68771696,146.62,146.59,0.6699436]
[1768429443247,0.68771696,146.61,146.56,7.49280243]
[1768429443734,0.68771696,146.6,146.57,0.6699436]
[1768429446562,0.68771696,146.6,146.57,7.49256241]
[1768429446842,0.68771696,146.61,146.58,0.6699436]
[1768429447848,0.68771696,146.62,146.59,0.6699436]
[1768429448838,0.68771696,146.61,146.58,0.6699436]
[1768429450443,0.68771696,146.61,146.58,7.49209167]
[1768429450742,0.68771696,146.62,146.59,0.6699436]
[1768429452121,0.68771696,146.62,146.58,7.49209167]
[1768429457252,0.68771696,146.63,146.6,0.6699436]
[1768429457452,0.68771696,146.67,146.63,0.6699436]
[1768429457657,0.68771696,146.67,146.64,0.6699436]
[1768429457949,9.31565919,146.71,146.69,1.0345617]
[1768429458125,2.69930614,146.73,146.69,1.64450545]
[1768429458329,0.2,146.73,146.69,1.59658513]
[1768429458547,0.2,146.73,146.7,0.6699436]
[1768429458726,0.88771696,146.73,146.7,3.10287962]
[1768429459227,0.88771696,146.73,146.69,0.92664153]
[1768429459424,0.88771696,146.73,146.7,2.49930614]
[1768429461334,0.88771696,146.73,146.69,4.08512674]
[1768429462356,0.66503621,146.72,146.69,0.92664153]
[1768429463251,0.66503621,146.72,146.69,0.65615812]
[1768429464858,0.66503621,146.71,146.68,0.65615812]
[1768429465032,0.66503621,146.68,146.62,42.95514802]
[1768429465238,0.66503621,146.68,146.64,2.49930614]
[1768429466055,0.66503621,146.68,146.63,9.31906546]
[1768429467037,0.66503621,146.68,146.63,9.97522358]
[1768429467256,0.66503621,146.68,146.63,7.47591744]
[1768429467556,0.66503621,146.68,146.63,9.97522358]
[1768429467742,0.66503621,146.68,146.64,0.65615812]
[1768429468957,0.66503621,146.68,146.64,7.47555793]
[1768429473564,0.25645543,146.68,146.65,0.65615812]
[1768429474158,3.65274459,146.82,146.74,0.65615812]
[1768429474474,3.65274459,146.82,146.79,7.0173954]
[1768429474637,0.2,146.87,146.79,7.0173954]
[1768429474638,3.90050489,147.0,146.83,0.65615812]
[1768429474836,7.45001054,147.0,146.84,4.55666301]
[1768429475064,12.42,146.87,146.84,0.65615812]
[1768429475738,12.42,146.87,146.84,7.46617285]
[1768429475962,23.3281691,146.9,146.84,7.46617285]
[1768429476141,10.9081691,146.9,146.84,7.46617285]
[1768429476759,10.9081691,146.9,146.8,18.51876253]
[1768429476760,0.66503621,146.85,146.8,0.65615812]
[1768429476968,0.66503621,146.85,146.79,24.04837463]
[1768429476969,0.66503621,146.84,146.79,9.92924606]
[1768429477147,0.66503621,146.84,146.8,3.90050489]
[1768429477945,12.42,146.85,146.8,3.90050489]
[1768429478360,12.42,146.85,146.8,4.55666301]
[1768429478866,12.42,146.85,146.8,0.65615812]
[1768429479081,19.22968496,146.85,146.8,0.65615812]
[1768429479254,18.82057547,146.85,146.8,4.55666301]
[1768429479562,12.01089051,146.85,146.8,4.55666301]
[1768429479974,12.67592672,146.85,146.8,4.55666301]
[1768429481468,0.66503621,146.84,146.8,4.55666301]
[1768429481854,13.08503621,146.84,146.8,0.65615812]
[1768429482369,13.08503621,146.84,146.8,4.55666301]
[1768429483149,13.08503621,146.84,146.8,0.65615812]
[1768429484549,12.42,146.83,146.8,0.65615812]
[1768429487846,0.66503621,146.84,146.8,0.65615812]
[1768429488046,12.42,146.83,146.8,0.65615812]
[1768429489273,13.08503621,146.83,146.79,11.36901856]
[1768429489478,13.08503621,146.83,146.79,7.46851367]
[1768429489676,1e-08,146.83,146.79,7.46851367]
[1768429489865,1e-08,146.83,146.8,0.65615812]
[1768429490670,22.81854025,146.85,146.8,0.65615812]
[1768429492183,22.81854025,146.85,146.78,3.90050489]
[1768429492184,3.90050489,146.83,146.78,7.49358336]
[1768429492665,4.04013469,146.83,146.78,7.49358336]
[1768429493587,3.8360365,146.83,146.78,7.49358336]
[1768429493878,0.3435189,146.82,146.78,7.49358336]
[1768429494077,3.17813392,146.83,146.79,0.68084959]
[1768429494383,10.71074407,146.84,146.79,0.68084959]
[1768429494561,9.51092797,146.84,146.79,0.68084959]
[1768429495580,3.90050489,146.82,146.78,7.49358336]
[1768429495758,5.61042308,146.84,146.78,7.49358336]
[1768429496080,4.46187736,146.83,146.79,0.68084959]
[1768429497857,3.99950489,146.82,146.78,0.68084959]
[1768429498386,4.45725363,146.81,146.77,7.49415127]
[1768429498589,1e-08,146.8,146.76,54.14966121]
[1768429500692,3.90050489,146.79,146.76,54.14966121]
[1768429500865,6.53100496,146.81,146.76,53.46881162]
[1768429501060,3.90050489,146.79,146.76,53.46881162]
[1768429501487,3.90050489,146.79,146.76,54.14966121]
[1768429501688,3.90050489,146.8,146.76,54.14966121]
[1768429502574,8.18792439,146.8,146.76,54.14966121]
[1768429502757,3.90050489,146.79,146.76,53.46881162]
[1768429502964,3.99950489,146.78,146.76,53.46881162]
[1768429506692,0.099,146.78,146.76,53.46881162]
[1768429506893,0.35524291,146.82,146.77,0.68084959]
[1768429507197,12.42,146.81,146.77,0.68084959]
[1768429507400,16.32050489,146.81,146.77,0.68084959]
[1768429507702,3.90050489,146.81,146.77,0.68084959]
[1768429507877,4.25318537,146.81,146.77,0.68084959]
[1768429508080,0.35268048,146.81,146.77,0.68084959]
[1768429508276,4.25318537,146.81,146.77,0.68084959]
[1768429508478,6.810729,146.83,146.78,0.68084959]
[1768429508685,10.81023389,146.83,146.78,0.68084959]
[1768429508889,3.90050489,146.82,146.78,0.68084959]
[1768429509698,0.1015368,146.81,146.78,0.68084959]
[1768429512987,11.06691733,146.82,146.78,0.68084959]
[1768429513503,7.16641244,146.82,146.78,0.68084959]
[1768429513679,11.06691733,146.82,146.78,0.68084959]
[1768429514410,0.35524291,146.82,146.78,0.68084959]
[1768429515205,0.35524291,146.82,146.76,53.46881162]
[1768429515407,4.25318537,146.77,146.76,53.46881162]
[1768429515708,4.00204169,146.76,146.73,0.68084959]
[1768429515904,4.00452802,146.74,146.71,12.42]
[1768429516201,0.10402313,146.74,146.7,0.68084959]
[1768429517308,4.00452802,146.74,146.7,0.68084959]
[1768429518207,10.8193144,146.74,146.7,0.68084959]
[1768429520187,6.91880951,146.74,146.7,0.68084959]
[1768429522603,10.8193144,146.74,146.7,0.68084959]
[1768429525295,0.34529511,146.71,146.67,0.67906197]
[1768429525507,0.35524291,146.72,146.68,0.67906197]
[1768429526212,4.2557478,146.72,146.68,0.67906197]
[1768429527814,0.35524291,146.72,146.68,0.67906197]
[1768429528218,6.81531455,146.73,146.69,0.67906197]
[1768429528808,6.78531456,146.73,146.69,0.67906197]
[1768429529146,10.68581945,146.73,146.69,0.67906197]
[1768429530121,27.75276322,146.74,146.69,0.67906197]
[1768429530305,0.099,146.72,146.68,0.67906197]
[1768429530505,0.06900001,146.72,146.68,0.67906197]
[1768429531020,0.06900001,146.72,146.7,50.0]
[1768429533708,0.06900001,146.72,146.7,9.95776848]
[1768429538622,2.49510301,146.71,146.67,0.67906197]
[1768429539420,2.49510301,146.7,146.67,0.67906197]
[1768429540515,9.3118396,146.7,146.67,0.67906197]
[1768429541914,9.28183961,146.7,146.67,0.67906197]
[1768429542426,2.49510301,146.69,146.67,0.67906197]
[1768429544719,2.49510301,146.7,146.67,0.67906197]
[1768429545806,29.4597785,146.72,146.65,0.2]
[1768429545807,2.49510301,146.68,146.65,0.2]
[1768429546012,2.49510301,146.66,146.63,0.67906197]
[1768429547935,2.49510301,146.66,146.61,7.02072434]
[1768429547936,6.8185356,146.66,146.62,0.67906197]
[1768429548229,2.49510301,146.64,146.62,0.67906197]
[1768429548405,2.46510302,146.64,146.62,0.67906197]
[1768429548610,2.49510301,146.65,146.62,0.67906197]
[1768429549143,9.31363861,146.66,146.62,0.67906197]
[1768429549332,2.49510301,146.67,146.62,0.67906197]
[1768429549639,2.49510301,146.67,146.63,0.67906197]
[1768429550232,9.31324169,146.67,146.63,0.67906197]
[1768429556241,2.49510301,146.66,146.62,0.68381072]
[1768429557249,26.35830884,146.67,146.62,0.68381072]
[1768429557441,2.49510301,146.65,146.62,0.68381072]
[1768429561246,6.7889567,146.65,146.62,0.68381072]
[1768429561823,6.81862828,146.66,146.62,0.68381072]
[1768429562022,9.31373129,146.66,146.62,0.68381072]
[1768429563124,2.49510301,146.65,146.61,0.2]
[1768429563525,2.49510301,146.65,146.61,0.88381072]
[1768429563740,26.35996066,146.66,146.61,0.88381072]
[1768429564250,9.31373129,146.66,146.62,0.68381072]
[1768429569235,2.49510301,146.64,146.62,0.68381072]
[1768429569653,2.49510301,146.65,146.62,0.68381072]
[1768429572658,9.31429139,146.65,146.62,0.68381072]
[1768429575161,2.49510301,146.64,146.61,0.2]
[1768429575347,2.49510301,146.63,146.61,0.2]
[1768429576546,2.49510301,146.63,146.61,0.88381072]
[1768429577647,9.31500753,146.63,146.61,0.88381072]
[1768429578365,6.81990452,146.63,146.61,0.88381072]
[1768429579458,2.49510301,146.63,146.61,0.2]
[1768429579866,2.49510301,146.63,146.61,0.88381072]
[1768429581165,6.8199566,146.63,146.61,0.88381072]
[1768429583765,2.49510301,146.63,146.61,0.88381072]
[1768429584566,9.31498979,146.63,146.61,0.2]
[1768429584757,9.31498979,146.63,146.6,3.52816378]
[1768429586270,9.98302391,146.63,146.6,3.52816378]
[1768429586652,9.98302391,146.63,146.6,4.20194572]
[1768429587373,9.98851926,146.64,146.61,0.67378194]
[1768429587753,2.49510301,146.62,146.57,9.20089903]
[1768429587948,2.49510301,146.58,146.51,0.1]
[1768429588284,0.099,146.56,146.5,8.26515807]
[1768429588451,0.099,146.56,146.5,5.77005506]
[1768429588972,0.099,146.56,146.51,2.49510301]
[1768429589155,6.92227291,146.56,146.51,2.49510301]
[1768429589551,6.92227291,146.56,146.5,5.77005506]
[1768429589864,6.92227291,146.56,146.52,0.67378194]
[1768429590861,9.41737592,146.56,146.52,0.67378194]
[1768429591262,6.92227291,146.56,146.52,0.67378194]
[1768429592869,9.41737592,146.56,146.52,0.67378194]
[1768429593458,10.82971238,146.56,146.52,0.67378194]
[1768429594158,0.37103412,146.55,146.52,0.67378194]
[1768429594676,7.19487284,146.55,146.52,0.67378194]
[1768429594973,4.00915981,146.54,146.5,6.443837]
[1768429596049,4.00915981,146.54,146.51,0.67378194]
[1768429596268,10.73164253,146.54,146.51,0.67378194]
[1768429597281,10.83064253,146.54,146.5,6.443837]
[1768429597873,3.90743947,146.53,146.51,0.67378194]
[1768429598083,3.90743947,146.52,146.5,5.77005506]
[1768429598268,10.73255115,146.52,146.5,5.77005506]
[1768429598874,3.90743947,146.51,146.5,5.77005506]
[1768429599179,10.73255115,146.52,146.5,5.77005506]
[1768429599571,3.90743947,146.52,146.5,5.77005506]
[1768429600868,11.10318183,146.53,146.5,6.443837]
[1768429602082,11.10318183,146.53,146.49,0.2]
[1768429602978,3.90743947,146.52,146.49,0.2]
[1768429603180,7.19574236,146.53,146.49,0.2]
[1768429603382,4.6306558,146.52,146.49,0.2]
[1768429603558,7.54792457,146.53,146.49,0.2]
[1768429603883,3.90743947,146.52,146.49,0.2]
[1768429604061,3.90743947,146.52,146.49,0.87378194]
[1768429604261,11.45536404,146.53,146.49,0.87378194]
[1768429605890,4.62762468,146.51,146.49,0.2]
[1768429606680,3.90743947,146.5,146.49,0.2]
[1768429606865,4.62762468,146.51,146.49,0.2]
[1768429609388,7.54829534,146.52,146.49,0.2]
[1768429609690,3.90743947,146.51,146.49,0.2]
[1768429611387,3.90743947,146.51,146.48,4.43045172]
[1768429611388,10.73337803,146.5,146.48,3.03166978]
[1768429611566,3.90743947,146.49,146.48,3.03166978]
[1768429611878,3.90743947,146.49,146.47,0.2]
[1768429613284,3.90743947,146.5,146.48,0.65266688]
[1768429613481,4.08067507,146.5,146.47,0.2]
[1768429613784,3.90743947,146.49,146.47,0.2]
[1768429614276,10.7335218,146.5,146.47,0.2]
[1768429614674,3.90743947,146.49,146.47,0.2]
[1768429615384,3.90743947,146.49,146.46,0.1]
[1768429615582,3.90743947,146.49,146.46,0.78741945]
[1768429615785,10.73390345,146.49,146.46,0.78741945]
[1768429615971,3.90743947,146.48,146.46,0.78741945]
[1768429617789,10.93615001,146.49,146.46,0.78741945]
[1768429618571,4.10968603,146.49,146.46,0.78741945]
[1768429618894,0.6709413,146.5,146.46,0.78741945]
[1768429619090,3.90743947,146.49,146.46,0.78741945]
[1768429623204,0.6709413,146.5,146.46,0.78741945]
[1768429623380,3.90743947,146.49,146.46,0.78741945]
[1768429624499,7.49662111,146.51,146.47,0.68741945]
[1768429624672,11.40406058,146.51,146.47,0.68741945]
[1768429624878,3.90743947,146.5,146.47,0.68741945]
[1768429626181,11.40406058,146.51,146.47,0.68741945]
[1768429626382,0.20224656,146.5,146.47,0.68741945]
[1768429628198,0.6709413,146.51,146.47,3.90743947]
[1768429629306,0.6709413,146.51,146.46,10.83502279]
[1768429629507,11.40399586,146.51,146.46,10.83502279]
[1768429629690,11.40399586,146.51,146.46,6.92758332]
[1768429630092,11.40399586,146.51,146.47,0.68741945]
[1768429635600,0.6709413,146.5,146.47,0.68741945]
[1768429638901,4.57838077,146.5,146.47,0.68741945]
[1768429640616,0.6709413,146.5,146.47,0.68741945]
[1768429649324,4.57838077,146.5,146.47,0.68741945]
[1768429651399,0.6709413,146.5,146.47,0.68741945]
[1768429653017,0.6709413,146.5,146.46,0.79116695]
[1768429653018,0.67211152,146.49,146.46,0.79116695]
[1768429655112,4.57955099,146.49,146.46,0.1]
[1768429655417,3.17536567,146.49,146.46,0.79116695]
[1768429656130,10.00184569,146.49,146.46,0.79116695]
[1768429656521,3.17536567,146.49,146.46,0.79116695]
[1768429658828,0.67211152,146.49,146.46,0.79116695]
[1768429660326,3.17536567,146.49,146.46,0.79116695]
[1768429660631,0.67211152,146.49,146.46,0.79116695]
[1768429660830,3.17536567,146.49,146.46,0.79116695]
[1768429661328,0.67211152,146.49,146.46,0.79116695]
[1768429661633,3.17536567,146.49,146.46,0.79116695]
[1768429662226,0.67211152,146.48,146.46,0.1]
[1768429662528,0.64211153,146.48,146.46,0.1]
[1768429666306,3.17536567,146.47,146.45,0.1]
[1768429666528,2.50325415,146.47,146.45,0.1]
[1768429666831,6.82693778,146.48,146.45,0.1]
[1768429667017,9.33019193,146.48,146.45,0.1]
[1768429667335,9.33019193,146.48,146.45,0.79116695]
[1768429667830,9.33019193,146.48,146.45,0.1]
[1768429668046,9.30019194,146.48,146.45,0.1]
[1768429668535,9.97230346,146.48,146.45,0.1]
[1768429669336,121.43934897,147.3,146.5,23.86782328]
[1768429669337,0.67211152,146.55,146.5,23.86782328]
[1768429669515,5.53588143,146.57,146.52,3.1944211]
[1768429669827,5.53588143,146.57,146.53,0.69116695]
[1768429670029,5.53588143,146.57,146.53,3.1944211]
[1768429670437,5.53588143,146.57,146.53,0.69116695]
[1768429671534,6.2466149,146.57,146.53,0.69116695]
[1768429672038,6.2466149,146.57,146.53,3.1944211]
[1768429673422,6.2466149,146.57,146.53,0.69116695]
[1768429673630,13.06935679,146.57,146.53,0.69116695]
[1768429674338,25.50935679,146.57,146.53,0.69116695]
[1768429675514,21.95190437,146.57,146.53,0.69116695]
[1768429675716,9.51190437,146.57,146.53,0.69116695]
[1768429675924,0.13747206,146.56,146.53,0.69116695]
[1768429679539,0.68496492,146.55,146.49,2.50325415]
[1768429679847,0.6797451,146.53,146.49,9.99657218]
[1768429680027,0.6797451,146.53,146.5,3.17018204]
[1768429680545,12.44,146.54,146.51,0.66692789]
[1768429680743,12.44,146.54,146.52,0.66692789]
[1768429682249,0.68496492,146.55,146.52,0.66692789]
[1768429682546,12.44,146.54,146.52,0.66692789]
[1768429683050,12.41000001,146.54,146.52,0.66692789]
[1768429684050,12.44,146.54,146.52,0.66692789]
[1768429684741,2.66339393,146.57,146.53,0.66692789]
[1768429685051,12.44,146.56,146.53,0.66692789]
[1768429688563,19.2635675,146.56,146.53,0.66692789]
[1768429688933,0.6797451,146.55,146.51,0.66692789]
[1768429695961,7.50350472,146.55,146.51,0.66692789]
[1768429696137,10.00675887,146.55,146.51,0.66692789]
[1768429696833,0.16815054,146.54,146.51,0.66692789]
[1768429697062,12.44,146.53,146.51,0.66692789]
[1768429697361,12.41000001,146.53,146.51,0.66692789]
[1768429698455,0.17321533,146.52,146.49,0.66692789]
[1768429698658,0.14321534,146.52,146.49,0.66692789]
[1768429699063,2.64646949,146.52,146.49,0.66692789]
[1768429701666,0.14321534,146.52,146.49,0.66692789]
[1768429702456,12.44,146.51,146.49,0.66692789]
[1768429703649,0.14321534,146.52,146.49,0.66692789]
[1768429703851,12.44,146.51,146.47,6.82702987]
[1768429704051,12.44,146.51,146.46,17.06883577]
[1768429704052,13.13620395,146.51,146.46,6.82763853]
[1768429704268,0.69620395,146.5,146.45,10.48315866]
[1768429704447,3.1994581,146.5,146.45,10.48315866]
[1768429704774,3.1994581,146.5,146.45,6.92805827]
[1768429705545,3.1994581,146.5,146.45,0.1]
[1768429705546,3.1994581,146.48,146.45,0.1]
[1768429705748,15.6394581,146.48,146.45,0.1]
[1768429706378,3.1994581,146.47,146.42,10.38702136]
[1768429706875,0.69620395,146.45,146.42,3.5574132]
[1768429707061,2.50325415,146.46,146.43,0.65698067]
[1768429708062,12.44,146.45,146.41,6.92997532]
[1768429708248,12.44,146.45,146.42,0.65698067]
[1768429709469,12.41000001,146.45,146.42,0.65698067]
[1768429709970,15.60945811,146.45,146.42,0.65698067]
[1768429710152,15.60945811,146.45,146.41,0.75698067]
[1768429710772,3.1994581,146.44,146.41,0.75698067]
[1768429711074,0.69620395,146.43,146.41,0.1]
[1768429711575,3.1994581,146.44,146.41,0.1]
[1768429712085,3.1994581,146.44,146.41,0.75698067]
[1768429712980,10.02820545,146.44,146.41,0.75698067]
[1768429713186,0.69620395,146.43,146.41,0.1]
[1768429713574,13.13620395,146.42,146.38,3.65812321]
[1768429713763,3.1994581,146.41,146.38,3.65812321]
[1768429715183,3.1994581,146.41,146.38,0.1]
[1768429715384,4.6111492,146.41,146.38,0.1]
[1768429715881,0.69620395,146.41,146.38,0.32951661]
[1768429716058,4.58114921,146.41,146.38,0.32951661]
[1768429716259,0.66620396,146.41,146.38,0.32951661]
[1768429717273,4.58114921,146.41,146.38,0.32951661]
[1768429717874,4.55114922,146.41,146.38,0.32951661]
[1768429718281,0.63620397,146.41,146.38,0.32951661]
[1768429718784,4.55114922,146.41,146.38,0.32951661]
[1768429720189,0.63620397,146.41,146.38,0.32951661]
[1768429722896,4.55114922,146.41,146.38,0.32951661]
[1768429723296,0.63620397,146.41,146.38,0.32951661]
[1768429723995,4.55114922,146.41,146.38,0.32951661]
[1768429724197,0.63620397,146.41,146.38,0.32951661]
[1768429725498,4.55114922,146.41,146.38,0.32951661]
[1768429726094,4.55114922,146.41,146.38,7.16103018]
[1768429726297,4.52114923,146.41,146.38,7.16103018]
[1768429728996,13.13620395,146.42,146.39,0.31951658]
[1768429729309,17.0511492,146.42,146.39,0.31951658]
[1768429729600,17.0511492,146.42,146.38,7.25103015]
[1768429729780,3.91494525,146.41,146.38,7.25103015]
[1768429729980,4.6111492,146.41,146.38,7.25103015]
[1768429730280,0.69620395,146.41,146.38,7.25103015]
[1768429730476,0.68747363,146.38,146.35,0.2]
[1768429730683,12.44,146.37,146.35,0.2]
[1768429730889,12.34000001,146.37,146.35,0.2]
[1768429733605,13.02747364,146.37,146.35,0.2]
[1768429739196,12.34000001,146.37,146.35,0.22999999]
[1768429739396,11.99881941,146.37,146.35,7.06293219]
[1768429739998,11.99881941,146.37,146.35,7.0329322]
[1768429740201,0.68747363,146.37,146.35,7.0329322]
[1768429740710,0.68747363,146.39,146.35,7.06293219]
[1768429740907,0.68747363,146.39,146.36,0.02999999]
[1768429741406,0.68747363,146.39,146.35,7.06293219]
[1768429741810,0.68747363,146.38,146.35,0.2]
[1768429741992,0.68747363,146.37,146.35,0.2]
[1768429743292,0.65747364,146.37,146.35,0.2]
[1768429746314,0.62747365,146.37,146.35,0.2]
[1768429747716,3.91494525,146.41,146.36,0.08999997]
[1768429747894,33.44975804,146.42,146.36,0.08999997]
[1768429748414,0.68747363,146.41,146.36,0.08999997]
[1768429748615,0.68747363,146.4,146.36,0.08999997]
[1768429751512,0.68747363,146.39,146.35,0.2]
[1768429751819,0.68747363,146.38,146.35,0.2]
[1768429757119,0.68747363,146.37,146.35,0.2]
[1768429761930,0.69581574,146.4,146.36,0.08999997]
[1768429762107,0.69581574,146.4,146.36,4.00494522]
[1768429762626,0.69581574,146.4,146.36,0.08999997]
[1768429769122,0.69581574,146.39,146.36,0.08999997]
[1768429769631,0.69581574,146.39,146.33,23.20872999]
[1768429769831,0.69581574,146.38,146.33,23.29872996]
[1768429770314,0.69581574,146.38,146.33,12.54999997]
[1768429770515,0.69581574,146.38,146.33,19.38380599]
[1768429771724,0.69581574,146.37,146.33,19.38380599]
[1768429772227,0.69581574,146.37,146.33,12.46]
[1768429772643,0.69581574,146.37,146.32,10.93915375]
[1768429773431,0.69581574,146.36,146.32,7.0242085]
[1768429774648,0.69581574,146.36,146.32,6.93420853]
[1768429775927,0.69581574,146.35,146.32,0.1]
[1768429784552,3.203293,146.35,146.32,0.1]
[1768429784841,0.69581574,146.35,146.32,0.18999997]
[1768429786632,0.69581574,146.35,146.32,7.0243102]
[1768429790143,0.69581574,146.35,146.32,0.18999997]
[1768429792138,3.203293,146.35,146.32,0.18999997]
[1768429793130,0.69581574,146.35,146.32,0.18999997]
[1768429793649,10.0363075,146.35,146.32,0.1]
[1768429793835,0.66492997,146.34,146.32,0.1]
[1768429795428,0.66492997,146.36,146.32,0.18999997]
[1768429796861,0.66492997,146.35,146.32,0.18999997]
[1768429797658,6.83250893,146.36,146.33,0.08999997]
[1768429797858,7.4974389,146.36,146.33,0.05999997]
[1768429798558,7.4974389,146.36,146.32,0.1]
[1768429798559,0.66492997,146.35,146.32,0.1]
[1768429799861,0.66492997,146.35,146.32,0.15999997]
[1768429800754,0.66492997,146.37,146.33,0.05999997]
[1768429802549,0.66492997,146.37,146.33,0.02999997]
[1768429804657,0.66492997,146.39,146.34,2.50747726]
[1768429804855,0.66492997,146.39,146.35,2.53747723]
[1768429805659,0.66492997,146.4,146.37,0.02999997]
[1768429805868,0.66492997,146.4,146.36,12.48999997]
[1768429810775,0.66492997,146.4,146.36,12.46]
[1768429810967,0.66492997,146.4,146.36,12.48999997]
[1768429811169,0.66492997,146.39,146.36,12.46]
[1768429811673,0.66492997,146.39,146.34,0.02999997]
[1768429813055,0.66492997,146.38,146.34,0.02999997]
[1768429813468,0.66492997,146.38,146.33,0.02999997]
[1768429813662,0.66492997,146.38,146.33,12.48999997]
[1768429814262,0.66492997,146.38,146.33,19.32383029]
[1768429816185,0.66492997,146.37,146.33,19.29377317]
[1768429817685,0.66492997,146.37,146.33,19.32377314]
[1768429818290,0.66492997,146.37,146.34,0.02999997]
[1768429818585,0.66492997,146.38,146.33,19.32377314]
[1768429820796,0.72122341,146.37,146.33,12.46]
[1768429822889,0.72122341,146.37,146.34,0.02999997]
[1768429823075,0.72122341,146.37,146.33,19.32367676]
[1768429825796,7.53689391,146.4,146.34,0.02999997]
[1768429825998,0.70607092,146.39,146.34,0.02999997]
[1768429827793,7.53620547,146.41,146.34,0.02999997]
[1768429830197,23.03127544,146.42,146.34,0.02999997]
[1768429830198,7.53573948,146.42,146.34,0.02999997]
[1768429831794,7.53573948,146.42,146.36,0.02999997]
[1768429834503,0.70607092,146.42,146.36,0.02999997]
[1768429845104,0.70607092,146.41,146.36,0.02999997]
[1768429849599,5.9565132,146.48,146.39,0.68851068]
[1768429849783,6.82593856,146.5,146.41,0.68851068]
[1768429849989,5.9565132,146.49,146.42,0.68851068]